Cogmind - Beta 13 @@@ ROGUE MODE // 2024.06.03 @ 18:31:05 Player: L1l7 Result: Self-destructed Performance ------------- Evolutions (3) 1500 Regions Visited (4) 800 Robots Destroyed (7) 35 Value Destroyed (36) 36 Prototype IDs (4) 80 Alien Tech Used (0) 0 Bonus (0) 0 TOTAL SCORE: 2451 Bonus ------- None Cogmind --------- Core Integrity 688/700 Matter 154/300 Energy 100/100 System Corruption 4% Temperature Cool (0) Movement Hovering (60) Location -7/Factory Parts ------- > --- POWER (2) -------- (None) > --- PROPULSION (4) --- Airjet > --- UTILITY (5) ------ Improved Terrain Scanner Reaction Control System System Shield Recalibrator > --- WEAPON (2) ------- Shock Rifle > --- INVENTORY (5) ---- Advanced Treads Reactive Plating Reactive Plating System Shield Gatling Laser Peak State ------------ > --- POWER ------------ (None) > --- PROPULSION ------- Airjet > --- UTILITY ---------- Improved Terrain Scanner Seismic Detector Reaction Control System System Shield Recalibrator > --- WEAPON ----------- Shock Rifle > --- INVENTORY -------- Advanced Treads Reactive Plating Reactive Plating Gatling Laser [Rating: 21] Favorites ----------- Power Light Ion Engine Engine Light Ion Engine Propulsion Compact Wheel Wheel Compact Wheel Hover Unit Airjet Flight Unit Flight Unit Utility Seismic Detector Device Seismic Detector Hackware System Shield Protection Reactive Plating Weapon Light Assault Rifle Energy Gun Medium Laser Ballistic Gun Light Assault Rifle Special Weapon Plasma Cutter Build | -11 -10 -9 -8 -7 ------- Run | Yrd Mat Mat Mat Fac Slots Evolved 6 | . . 2 2 2 Power 1 | . . . 1 . Propulsion 2 | . . 1 . 1 Utility 3 | . . 1 1 1 Weapon . | . . . . . Parts Attached 23 | 5 5 2 7 4 Power 1 | . 1 . . . Engine 1 | . 1 . . . Core . | . . . . . Reactor . | . . . . . Propulsion 5 | 2 2 . 1 . Treads . | . . . . . Leg . | . . . . . Wheel 2 | 2 . . . . Hover 1 | . . . 1 . Flight 2 | . 2 . . . Utility 10 | 1 . 2 5 2 Device 8 | 1 . 2 3 2 Storage . | . . . . . Processor . | . . . . . Hackware 1 | . . . 1 . Protection 1 | . . . 1 . Artifact . | . . . . . Weapon 7 | 2 2 . 1 2 Energy Gun 4 | . 2 . . 2 Energy Cannon . | . . . . . Ballistic Gun 2 | 2 . . . . Ballistic Cannon . | . . . . . Launcher . | . . . . . Special Weapon 1 | . . . 1 . Impact Weapon . | . . . . . Slashing Weapon . | . . . . . Piercing Weapon . | . . . . . Special Melee Weapon . | . . . . . Unidentified Prototypes 1 | . . . . 1 Parts Lost 7 | . . 2 4 1 Power 1 | . . . 1 . Propulsion 3 | . . 1 2 . Utility 2 | . . 1 . 1 Weapon 1 | . . . 1 . Highest Loss Streak 2 | . . 2 2 1 To Critical Strikes . | . . . . . Average Slot Usage (%) 50 | . 74 50 36 47 Engine 5 | . 11 11 4 . Wheel 4 | . 19 . . . Hover 2 | . . . 1 7 Flight 6 | . 4 20 9 . Device 18 | . 14 10 15 27 Hackware 3 | . . . 3 7 Energy Gun 5 | . 8 9 . 5 Ballistic Gun 3 | . 14 . . . Naked Turns . | . . . . . Heaviest Build 7 | 4 7 6 5 7 Greatest Support 32 | 32 32 8 8 8 Greatest Overweight (x) 1 | . . . 1 . Average Overweight (x) . | . . . . . Largest Inventory Capacity 5 | 5 5 5 5 5 Average Capacity 5 | 5 5 5 5 5 Most Carried 5 | 5 5 5 5 5 Average Carried 3 | 1 4 2 4 4 Final Capacity 5 | 5 5 5 5 5 Final Carried 5 | 5 2 3 4 5 Class Distribution -------------------- 100% | Mutant Dominant Class ---------------- Mutant | -10/Materials Mutant | -9/Materials Mutant | -8/Materials Mutant | -7/Factory Resources | -11 -10 -9 -8 -7 ----------- Run | Yrd Mat Mat Mat Fac Matter Collected 379 | 346 33 . . . Remotely . | . . . . . Salvage Created 185 | 185 . . . . Parts 16 | 16 . . . . Haulers Intercepted . | . . . . . Recyclers Shooed . | . . . . . Parts Field Recycled . | . . . . . Retrieved Matter . | . . . . . Parts Self-Destructed . | . . . . . Prevented . | . . . . . Kills | -11 -10 -9 -8 -7 ------- Run | Yrd Mat Mat Mat Fac Combat Hostiles Destroyed . | . . . . . Classes Destroyed 3 | 3 . . . . Worker 2 | 2 . . . . Tunneler 4 | 4 . . . . Recycler 1 | 1 . . . . Best Kill Streak 2 | 2 . . . . Combat Bots Only . | . . . . . Max Kills in Single Turn 1 | 1 . . . . Gunslinging . | . . . . . Exploded . | . . . . . Melee . | . . . . . Uniques/NPCs Destroyed . | . . . . . Combat | -11 -10 -9 -8 -7 -------- Run | Yrd Mat Mat Mat Fac Hostile Shots Fired 106 | . 11 17 63 15 Missed 60 | . 6 9 37 8 Damage Taken 516 | . 38 122 313 43 Core 246 | . . 58 176 12 Absorbed by Shields . | . . . . . Core Remaining (%) 88 | 100 100 85 68 . Volleys Fired 21 | 18 3 . . . Largest 2 | 2 2 . . . Hottest 70 | 40 70 . . . Shots Fired 42 | 36 6 . . . Gun 42 | 36 6 . . . Cannon . | . . . . . Launcher . | . . . . . Special . | . . . . . Kinetic 39 | 36 3 . . . Thermal 3 | . 3 . . . Explosive . | . . . . . Electromagnetic . | . . . . . Robot Hit Streak 10 | 10 5 . . . Robot Miss Streak 2 | 2 2 . . . Penetration Max . | . . . . . Secondary Targets . | . . . . . Shots Hit Robots 25 | 22 3 . . . Core Hits 12 | 11 1 . . . Critical Kills . | . . . . . Critical Parts Destroyed . | . . . . . Critical Strikes . | . . . . . Melee Attacks . | . . . . . Impact . | . . . . . Slashing . | . . . . . Piercing . | . . . . . Sneak Attacks . | . . . . . Combat Hostiles . | . . . . . Follow-up Attacks . | . . . . . Damage Inflicted 268 | 240 28 . . . Guns 268 | 240 28 . . . Cannons . | . . . . . Explosions . | . . . . . Melee . | . . . . . Ramming . | . . . . . Kinetic 255 | 240 15 . . . Thermal 13 | . 13 . . . Explosive . | . . . . . Electromagnetic . | . . . . . Impact . | . . . . . Slashing . | . . . . . Piercing . | . . . . . Highest Corruption 4 | . . . . 4 Average Corruption 4 | . . . . 4 Corruption Purged . | . . . . . Corruption Blocked . | . . . . . Effects 5 | . . . . 5 Matter Fused 2 | . . . . 2 Heat Flow Errors 2 | . . . . 2 Data Loss (minor) 1 | . . . . 1 Overload Shots . | . . . . . Overflow Damage . | . . . . . Projectiles . | . . . . . Explosions . | . . . . . Melee . | . . . . . Knockbacks . | . . . . . Impact . | . . . . . Kinetic . | . . . . . Secondary . | . . . . . Self-Inflicted Damage . | . . . . . Shots . | . . . . . Rammed . | . . . . . Targets Rammed . | . . . . . Kicked . | . . . . . Crushed . | . . . . . Highest Temperature 111 | . 30 . 8 111 Average Temperature 35 | . 18 . 8 57 Received Heat Transfer 150 | . . 27 117 6 Siege Activations . | . . . . . Robots Corrupted . | . . . . . Combat Hostiles . | . . . . . Parts Fried . | . . . . . Impact Corruptions . | . . . . . Robots Melted . | . . . . . Combat Hostiles . | . . . . . Parts Melted . | . . . . . Heat Transferred 37 | . 37 . . . Parts Sabotaged . | . . . . . Parts Stolen . | . . . . . Parts Stripped . | . . . . . Power Chain Reactions . | . . . . . Alert | -11 -10 -9 -8 -7 ------- Run | Yrd Mat Mat Mat Fac Peak Influence 232 | 35 96 160 232 174 Initial 100 | . 22 40 67 100 Average 73 | 16 39 79 78 132 Maximum Alert Level 1 | . . . 1 . Low Security (%) 99 | 100 100 100 97 100 Level 1 . | . . . 2 . Level 2 . | . . . . . Level 3 . | . . . . . Level 4 . | . . . . . Level 5 . | . . . . . High Security . | . . . . . Max Security . | . . . . . Squads Dispatched 4 | . 1 . 3 . Investigation 2 | . 1 . 1 . Extermination . | . . . . . Reinforcement 2 | . . . 2 . Assault . | . . . . . Garrison . | . . . . . Intercept . | . . . . . Searches Triggered . | . . . . . Construction Impeded . | . . . . . Haulers Reinforced . | . . . . . Active Scanning Responses . | . . . . . Cargo Convoy Interrupts . | . . . . . Stealth | -11 -10 -9 -8 -7 --------- Run | Yrd Mat Mat Mat Fac Distress Signals 4 | . 1 1 2 . Communications Jammed . | . . . . . Distress Signals . | . . . . . Times Spotted 38 | . 5 11 21 1 Peak Tracking Total 18 | . 4 11 18 1 Tactical Retreats 4 | . 1 1 2 . Traps | -11 -10 -9 -8 -7 ------- Run | Yrd Mat Mat Mat Fac Traps Triggered 2 | . 1 . 1 . Indirectly . | . . . . . Trap Hack Attempts . | . . . . . Triggered . | . . . . . Disarmed . | . . . . . Reprogrammed . | . . . . . Reused . | . . . . . Traps Extracted . | . . . . . Installed . | . . . . . Triggered . | . . . . . Machines | -11 -10 -9 -8 -7 ---------- Run | Yrd Mat Mat Mat Fac Machines Disabled . | . . . . . Max in Single Turn . | . . . . . Machines Repaired . | . . . . . Machines Dismantled . | . . . . . Machines Sabotaged . | . . . . . Overloaded Fab Kills . | . . . . . Hacking | -11 -10 -9 -8 -7 --------- Run | Yrd Mat Mat Mat Fac Machines Accessed 13 | . 4 3 2 4 Terminals 11 | . 4 3 2 2 Fabricators 2 | . . . . 2 Repair Stations . | . . . . . Recycling Units . | . . . . . Scanalyzers . | . . . . . Garrison Access . | . . . . . Total Hacks 34 | . 13 7 4 10 Successful 19 | . 8 5 2 4 Failed 15 | . 5 2 2 6 Catastrophic 3 | . . . 1 2 Database Lockouts . | . . . . . Manual 5 | . . 1 . 4 Terminals 30 | . 13 7 4 6 Fabricators 4 | . . . . 4 Repair Stations . | . . . . . Recycling Units . | . . . . . Scanalyzers . | . . . . . Garrison Access . | . . . . . Terminal Hacks 16 | . 8 5 2 1 Record 6 | . 4 2 . . Robot Analysis 1 | . 1 . . . Prototype ID Bank 2 | . . 2 . . Emergency Access Points 1 | . . . . 1 Terminal Index 1 | . 1 . . . Locate Traps 1 | . . . 1 . Investigation Status 1 | . 1 . . . Recall Investigation 1 | . 1 . . . Zone Layout 2 | . . 1 1 . Fabricator Hacks 1 | . . . . 1 Network Status 1 | . . . . 1 Repair Station Hacks . | . . . . . Recycling Unit Hacks . | . . . . . Scanalyzer . | . . . . . Garrison Access Hacks . | . . . . . Unauthorized Hacks 2 | . . . . 2 Terminals 2 | . . . . 2 Botnet 1 | . . . . 1 Operators 1 | . . . . 1 Fabricators . | . . . . . Repair Stations . | . . . . . Recycling Units . | . . . . . Scanalyzers . | . . . . . Garrison Access . | . . . . . Data Cores Recovered . | . . . . . Used . | . . . . . Hacking Detections 12 | . 3 3 2 4 Full Trace Events . | . . . . . Feedback Events . | . . . . . Feedback Blocked . | . . . . . Robot Schematics Acquired . | . . . . . Robots Built . | . . . . . Authchips . | . . . . . Time . | . . . . . Total Robot Build Rating . | . . . . . Part Schematics Acquired . | . . . . . Parts Built . | . . . . . Authchips . | . . . . . Time . | . . . . . Total Part Build Rating . | . . . . . Parts Repaired . | . . . . . Time . | . . . . . Parts Recycled . | . . . . . Recycled Matter . | . . . . . Retrieved Matter . | . . . . . Retrieved Components . | . . . . . Parts Scanalyzed . | . . . . . Part Schematics Acquired . | . . . . . Parts Damaged . | . . . . . Bothacking | -11 -10 -9 -8 -7 ------------ Run | Yrd Mat Mat Mat Fac Used RIF Installer . | . . . . . Robots Hacked . | . . . . . Non-combat . | . . . . . Combat . | . . . . . Robot Hacks Applied . | . . . . . Relay Couplers Released . | . . . . . Fabnet Peak Effective % . | . . . . . Robots Rewired . | . . . . . Allies Hacked . | . . . . . Hacks Repelled . | . . . . . Allies | -11 -10 -9 -8 -7 -------- Run | Yrd Mat Mat Mat Fac Total Allies . | . . . . . Largest Group . | . . . . . Highest-Rated Group . | . . . . . Highest-Rated Ally . | . . . . . Total Orders . | . . . . . Ally Attacks . | . . . . . Total Damage . | . . . . . Kills . | . . . . . Allies Corrupted . | . . . . . Allies Melted . | . . . . . Intel | -11 -10 -9 -8 -7 ------- Run | Yrd Mat Mat Mat Fac Robot Analysis Total 1 | . 1 . . . Derelict Logs Recovered . | . . . . . Drone Launches . | . . . . . Drone Recoveries . | . . . . . Exploration | -11 -10 -9 -8 -7 ------------- Run | Yrd Mat Mat Mat Fac Turns Passed 935 | 188 168 122 202 255 Spaces Moved 1399 | 133 211 302 325 428 Core 144 | 19 . . 1 124 Treads . | . . . . . Legs . | . . . . . Wheels 219 | 114 105 . . . Hover 334 | . . . 30 304 Flight 702 | . 106 302 294 . Fastest Speed 37 | 50 37 37 40 50 Average Speed 57 | 92 69 37 54 57 Slowest Speed 120 | 100 100 40 120 60 Overloaded Moves . | . . . . . Propulsion Burnouts . | . . . . . Robots Hopped 5 | . 1 . 4 . Cave-ins Triggered . | . . . . . Exploration Rate (%) 21 | 5 39 23 34 5 Regions Visited 4 Branch Regions . Pre-discovered Areas . | . . . . . Known Exits Taken . | . . . . . Unknown Exits Taken 4 | 1 1 1 1 . Scrap Searched . | . . . . . Spaces Dug . | . . . . . Terrain Destroyed . | . . . . . Melee . | . . . . . Projectile . | . . . . . AOE . | . . . . . Terrain Rammed . | . . . . . Walls Destroyed . | . . . . . Machines Disabled . | . . . . . Actions | -11 -10 -9 -8 -7 --------- Run | Yrd Mat Mat Mat Fac Total 1492 | 165 230 312 346 439 Wait . | . . . . . Move 1386 | 132 208 301 317 428 Hop 4 | . 1 . 3 . Pick Up 33 | 10 4 4 10 5 Fast Attach . | . . . . . Attach 24 | 5 5 2 8 4 Detach 8 | . 2 2 3 1 Swap . | . . . . . Drop 15 | . 7 3 4 1 Fire 21 | 18 3 . . . Melee . | . . . . . Ram . | . . . . . Kick . | . . . . . Crush . | . . . . . Escape Stasis . | . . . . . Rewire . | . . . . . Trap . | . . . . . Miscellaneous 1 | . . . 1 . Route ------- -11/Scrapyard -10/Materials -9/Materials -8/Materials -7/Factory History --------- Turn | Location | Event 9 | -11/Scrapyard | Discovered new exit (range 14) 189 | -11/Scrapyard | Entered Materials 351 | -10/Materials | Discovered new exit (range 13) 355 | -10/Materials | Build established: Mutant 357 | -10/Materials | Entered another Materials area 357 | -9/Materials | Evolved 2 slots: Propulsion x1, Utility x1 472 | -9/Materials | Discovered new exit (range 8) 479 | -9/Materials | Entered another Materials area 479 | -8/Materials | Evolved 2 slots: Power x1, Utility x1 674 | -8/Materials | Discovered new exit (range 16) 681 | -8/Materials | Entered Factory 681 | -7/Factory | Evolved 2 slots: Propulsion x1, Utility x1 936 | -7/Factory | Self-destructed Last Messages --------------- Acquired Reaction Control System. Acquired System Shield. System corrupted: Matter fused (-7). Connecting with Terminal... >>Trojan(Operators) Trojan loaded successfully. Testing... Operator tracking enabled and active. Connecting with Terminal... >>Trojan(Botnet) Trojan loaded successfully. Testing... Terminal linked with 0 systems. Awaiting botnet instructions. System corrupted: Heat flow error (+129). Connecting with Fabricator... System corrupted: Matter fused (-9). ALERT: All DSF locations entering lockdown mode. Seismic Detector destroyed. System corrupted: Heat flow error (+143). Map ----- +----------------------------------------------------+ | ?????????????????????????????? | | ???????????????????????????????? ? | | ?????????????????????????????????? ??? | | ???????????????????????????????????? ????? | | ?????????????????????????????????????? ??????? | | ???????????????????????????????#########+####????? | | ???????????????????????????????# #? ? | | ???????????????????????????????# #? | | ???????????????????????????????# #? | | ???????????????????????????????# #? | | ???????????????????????????????# """ """ ## | | ???????????????????????????????# """ """ ## | | ???????????????????????????????# """ """ ## | | ???????????????????????????????# ## | | ???????????????????????????????#! """ """ ## | | ???????????????????????????????# """ """ ## | | ???????????????????????????????# """ """ ## | | ???????????????????????????????# ## | | ?????????????????#############?##########+#### | | ?????????????????# #??# ## | | ?????????????????# """ """ #??# """"""""" ## | | ??????????#??????# """ """ #??# + | | ??????????? ?????# """ """ #??# """"""""" ## | | ???????????# ????# #??# ## | | ???????##### ###?# #??# """"""""" ## | | ???????# # @ #??# ## | | ???????# ###Y####################/### | | ???????# | | ???????# " | | ???????+ "T | | ???????# | | ???????# | | ???????# ###+########### ######+### | | ???????# #/ #????# # ###### | | ????????########?# """"" ###### # """" "#????? | | ?????????????????# "" F" + # """" "#????? | | ?????????????????# "" "" ###### # """" "#????? | | ?????????????????# #????# # """" T#????? | | ?????????????????#! """ ###### # """" "#????? | | ?????????????????# """ + # """" "#????? | | ?????????????????# """ ! ########## """" "#????? | | ?????????????????# #????????# #????? | | ?????????????????##########????????##########????? | | ?????????????????????????????????????????????????? | | ?????????????????????????????????????????????????? | | | | | | | | | | | +----------------------------------------------------+ Best States ------------- Heat Dissipation 34 Energy Generation 10 Energy Capacity 125 Matter Stores 300 Matter Capacity 300 Sight Range 16 Terrain Scan Range 16 Terrain Scan Density 10 Evasion (%) 62 Defensive Hacking 10 Item Schematics ----------------- None Robot Schematics ------------------ None Fabricated ------------ Nothing Alien Tech Used ----------------- None Achievements -------------- None Challenges ------------ None Game ------ Seed RelayArmageddonPurifier Manual? 0 Play Time 00:26:03 Cumulative 56.8 hours Start 2024.06.03 @ 18:04:57 End 2024.06.03 @ 18:31:05 Sessions 1 Manual Loads 0 Difficulty Rogue Special Mode None Game No. 89 Rogue 89 Adventurer 0 Explorer 0 Win Type - Total 2 Types 1/0/1/0/0/0/0/0/0 Lore% 39 Gallery% 44 Achievement% 39 Wizard Run 0 Options --------- Layout 1 ASCII 0 Keyboard 0 Movement Arrows Keybinds 0 Fullscreen 2 Font 24/Smallcaps Map View 50x35 Zoom Use 0% Tactical HUD 0 Map Filters NONE Filters NONE Steam 1 RUN: 73566043-9734-434f-bdc3-6f1d6b076052